bitfinex/quotes_BTCUSD_20240727
["timestamp","ask_amount","ask_price","bid_price","bid_amount"]
[1722104056524,0.1392,68824.0,68823.0,0.8177]
[1722104056525,0.0764,68824.0,68823.0,0.8177]
[1722104057585,0.0628,68826.0,68825.0,0.435888]
[1722104057781,0.0628,68826.0,68825.0,0.72648]
[1722104058724,0.0638,68826.0,68825.0,0.72648]
[1722104059973,0.001,68826.0,68825.0,0.72648]
[1722104060469,0.00392399,68826.0,68825.0,0.72648]
[1722104060687,0.003,68826.0,68825.0,0.72648]
[1722104061101,0.0764,68827.0,68826.0,0.726467]
[1722104061335,0.0764,68827.0,68826.0,0.817667]
[1722104062310,0.0764,68827.0,68826.0,0.726467]
[1722104063700,0.0764,68827.0,68826.0,0.728467]
[1722104064417,0.0764,68827.0,68826.0,0.730467]
[1722104066796,0.0764,68827.0,68826.0,0.73992974]
[1722104069061,0.0764,68827.0,68826.0,1.03051674]
[1722104069304,0.0023942,68829.0,68828.0,0.726447]
[1722104069524,0.00084,68829.0,68828.0,1.307605]
[1722104069729,0.00084,68829.0,68828.0,1.31706164]
[1722104070659,0.00184,68829.0,68828.0,1.31706164]
[1722104070861,0.00184,68829.0,68828.0,1.45436164]
[1722104072493,0.00284,68829.0,68828.0,1.46536164]
[1722104073146,0.00184,68829.0,68828.0,1.90620021]
[1722104073355,0.00184,68829.0,68828.0,2.15463306]
[1722104073559,0.00184,68829.0,68828.0,2.16263306]
[1722104073560,0.00284,68829.0,68828.0,2.16263306]
[1722104073805,0.00284,68829.0,68828.0,2.15463306]
[1722104073806,0.00184,68829.0,68828.0,2.15463306]
[1722104074849,0.00284,68829.0,68828.0,2.25682825]
[1722104074996,0.00184,68829.0,68828.0,2.24582825]
[1722104075199,0.00084,68829.0,68828.0,2.23482825]
[1722104075504,0.00084,68829.0,68828.0,2.25440452]
[1722104075947,0.00084,68829.0,68828.0,2.24340452]
[1722104076154,0.00084,68829.0,68828.0,2.25740229]
[1722104076885,0.00184,68829.0,68828.0,2.27140229]
[1722104078154,0.00184,68829.0,68828.0,2.27140224]
[1722104078359,0.00184,68829.0,68828.0,2.15070153]
[1722104078554,0.00184,68829.0,68828.0,2.27140183]
[1722104079213,0.00184,68829.0,68828.0,2.15070153]
[1722104080675,0.00184,68829.0,68828.0,2.44128053]
[1722104080884,0.00184,68829.0,68828.0,2.56197831]
[1722104081462,0.00184,68829.0,68828.0,2.56197584]
[1722104082734,0.2678903,68830.0,68829.0,2.026037]
[1722104083075,0.2678903,68830.0,68829.0,2.33415049]
[1722104083607,0.15032979,68849.0,68848.0,1.016732]
[1722104083816,0.0752,68849.0,68848.0,1.107932]
[1722104084016,0.0752,68849.0,68848.0,1.12202549]
[1722104084954,0.0792,68849.0,68848.0,1.12202549]
[1722104085832,0.004,68849.0,68848.0,1.41252049]
[1722104086267,0.004,68849.0,68848.0,1.56278006]
[1722104086484,0.004,68849.0,68848.0,1.58578006]
[1722104087152,0.0752,68856.0,68855.0,1.016627]
[1722104087577,0.0752,68856.0,68855.0,1.03069194]
[1722104088019,0.1418,68856.0,68855.0,1.03069194]
[1722104088234,0.1418,68856.0,68855.0,0.74022694]
[1722104088452,0.1418,68856.0,68855.0,0.74522694]
[1722104088814,0.1418,68856.0,68855.0,0.74822694]
[1722104090213,0.1418,68856.0,68855.0,0.02206494]
[1722104090450,0.1418,68856.0,68855.0,0.45776194]
[1722104091085,0.1418,68856.0,68855.0,0.45276194]
[1722104091319,0.1418,68856.0,68855.0,0.16229694]
[1722104091537,0.1448,68856.0,68855.0,0.16229694]
[1722104091765,0.1448,68856.0,68855.0,0.15929694]
[1722104092864,0.1448,68856.0,68855.0,0.01406494]
[1722104093963,0.1457,68854.0,68851.0,0.290479]
[1722104094181,0.14823,68856.0,68852.0,0.145237]
[1722104094182,0.1457,68855.0,68852.0,0.145237]
[1722104094406,0.14823,68856.0,68852.0,0.145237]
[1722104094607,0.14823,68856.0,68853.0,0.145236]
[1722104094828,0.14523,68856.0,68852.0,0.145238]
[1722104095207,0.1457,68854.0,68852.0,0.145238]
[1722104095571,0.1457,68853.0,68852.0,0.145239]
[1722104095800,0.1457,68853.0,68850.0,0.145242]
[1722104096038,0.07512979,68851.0,68850.0,0.145243]
[1722104096551,0.07512979,68851.0,68850.0,0.435729]
[1722104096745,0.07512979,68851.0,68850.0,0.01408093]
[1722104097160,0.22037079,68851.0,68850.0,0.01408093]
[1722104097372,0.22037079,68851.0,68850.0,0.01138624]
[1722104097811,0.65655279,68851.0,68850.0,0.01138624]
[1722104098213,0.65655279,68851.0,68850.0,0.002]
[1722104098441,0.65655279,68851.0,68850.0,0.01138624]
[1722104098686,0.65655279,68851.0,68850.0,0.005]
[1722104099117,0.65655279,68851.0,68850.0,0.01438624]
[1722104099952,0.22082979,68851.0,68850.0,0.01438624]
[1722104100160,0.36607079,68851.0,68850.0,0.01438624]
[1722104100375,0.65655279,68851.0,68850.0,0.01438624]
[1722104100608,0.22037079,68851.0,68850.0,0.01438624]
[1722104100846,0.0912,68863.0,68850.0,0.01438624]
[1722104100847,0.11023624,68871.0,68870.0,0.145201]
[1722104101064,0.0082,68871.0,68870.0,0.526803]
[1722104101265,0.0082,68871.0,68870.0,0.00996924]
[1722104101744,0.0082,68871.0,68866.0,0.0912]
[1722104101997,0.1539,68871.0,68870.0,0.00996924]
[1722104102219,0.1539,68871.0,68870.0,0.145201]
[1722104102445,0.0082,68871.0,68870.0,0.44556516]
[1722104102887,0.0082,68871.0,68870.0,0.73596716]
[1722104103577,0.0082,68871.0,68870.0,0.73996716]
[1722104104028,0.0082,68871.0,68870.0,0.74096716]
[1722104104243,0.0082,68871.0,68870.0,0.75196716]
[1722104104430,0.0082,68871.0,68870.0,0.74696716]
[1722104104937,0.0082,68871.0,68870.0,0.46856516]
[1722104105396,0.0082,68871.0,68870.0,0.75896716]
[1722104105857,0.0082,68871.0,68870.0,0.17816316]
[1722104106086,0.443795,68871.0,68870.0,0.03296216]
[1722104106288,0.589495,68871.0,68870.0,0.03296216]
[1722104106560,0.589495,68871.0,68870.0,0.023]
[1722104106767,0.589495,68871.0,68870.0,0.012]
[1722104107174,0.145203,68870.0,68865.0,0.145211]
[1722104107319,0.2991,68871.0,68870.0,0.003]
[1722104107543,0.1599,68871.0,68870.0,0.149201]
[1722104107745,0.1539,68871.0,68870.0,0.15815529]
[1722104107942,0.1539,68871.0,68870.0,0.44855729]
[1722104108307,0.15974,68871.0,68870.0,0.15815529]
[1722104108592,0.08814,68871.0,68870.0,0.01295429]
[1722104108767,0.08814,68871.0,68870.0,0.44855729]
[1722104109141,0.08814,68871.0,68870.0,0.44555729]
[1722104109540,0.01004,68871.0,68870.0,1.02636129]
[1722104109766,0.01104,68871.0,68870.0,1.02636129]
[1722104109965,0.01004,68871.0,68870.0,1.02636129]
[1722104110902,0.01104,68871.0,68870.0,1.02636129]
[1722104111106,0.01004,68871.0,68870.0,1.02636129]
[1722104111339,0.01004,68871.0,68870.0,1.03036129]
[1722104111539,0.01004,68871.0,68870.0,1.32076329]
[1722104111744,0.01004,68871.0,68870.0,1.56952286]
[1722104112094,0.00904,68871.0,68870.0,1.56552286]
[1722104112302,0.00904,68871.0,68870.0,1.66552286]
[1722104112522,0.00904,68871.0,68870.0,2.02182486]
[1722104112727,0.0201088,68878.0,68877.0,0.145186]
[1722104112977,0.0201088,68878.0,68877.0,1.51773263]
[1722104113125,0.0201088,68878.0,68877.0,2.21195495]
[1722104113320,0.0201088,68878.0,68877.0,2.21395495]
[1722104113581,0.0201088,68878.0,68877.0,2.50232695]
[1722104114545,0.0201088,68878.0,68877.0,2.51632695]
[1722104114749,0.0201088,68878.0,68877.0,1.99555211]
[1722104114750,0.0211088,68878.0,68877.0,1.99555211]
[1722104114967,0.0211088,68878.0,68877.0,1.74026687]
[1722104115147,0.0211088,68878.0,68877.0,1.79261905]
[1722104115661,0.0211088,68878.0,68877.0,1.42689487]
[1722104115862,0.0211088,68878.0,68877.0,1.44089487]
[1722104116279,0.0211088,68878.0,68877.0,1.4353933]
[1722104116484,0.0201088,68878.0,68877.0,1.4213933]
[1722104116660,0.0201088,68878.0,68877.0,1.4353933]
[1722104116860,0.0211088,68878.0,68877.0,1.4493933]
[1722104117065,0.0211088,68878.0,68877.0,0.48198973]
[1722104117273,0.0211088,68878.0,68877.0,0.4734913]
[1722104117483,0.0201088,68878.0,68877.0,1.17649487]
[1722104117688,0.0201088,68878.0,68877.0,1.46686687]
[1722104117890,0.0201088,68878.0,68877.0,1.49486687]
[1722104117891,0.0211088,68878.0,68877.0,1.49486687]
[1722104118088,0.0211088,68878.0,68877.0,1.48086687]
[1722104118515,0.0221088,68878.0,68877.0,1.51486687]
[1722104118896,0.0221088,68878.0,68877.0,1.61486687]
[1722104119754,0.0221088,68878.0,68877.0,1.60086687]
[1722104119997,0.0221088,68878.0,68877.0,1.58986687]
[1722104119998,0.0201088,68878.0,68877.0,1.58986687]
[1722104120172,0.0211088,68878.0,68877.0,1.60386687]
[1722104120378,0.0211088,68878.0,68877.0,1.61386687]
[1722104120781,0.0211088,68878.0,68877.0,1.60386687]
[1722104121153,0.0211088,68878.0,68877.0,1.61786687]
[1722104122562,0.0211088,68878.0,68877.0,1.32749487]
[1722104122765,0.0211088,68878.0,68877.0,0.8638633]
[1722104123189,0.0211088,68878.0,68877.0,1.1542353]
[1722104123395,0.0201088,68878.0,68877.0,1.1402353]
[1722104123590,0.0201088,68878.0,68877.0,1.27649487]
[1722104123764,0.0201088,68878.0,68877.0,1.30449487]
[1722104123765,0.0211088,68878.0,68877.0,1.30449487]
[1722104124444,0.0211088,68878.0,68877.0,0.8638633]
[1722104124622,0.0211088,68878.0,68877.0,0.4734913]
[1722104124822,0.0211088,68878.0,68877.0,0.7638633]
[1722104125996,0.0211088,68878.0,68877.0,0.1831193]
[1722104126199,0.0211088,68878.0,68877.0,0.4734913]
[1722104127165,0.0211088,68878.0,68877.0,0.0379333]
[1722104127370,0.8851288,68878.0,68877.0,0.0379333]
[1722104127600,0.1592088,68878.0,68877.0,0.028]
[1722104127805,0.1592088,68878.0,68877.0,0.173186]
[1722104128005,0.1592088,68878.0,68877.0,0.1831079]
[1722104128282,0.1592088,68878.0,68877.0,0.1691079]
[1722104128486,0.1612088,68878.0,68877.0,0.1691079]
[1722104129117,0.1612088,68878.0,68877.0,0.0239219]
[1722104129440,0.1602088,68878.0,68877.0,0.4454799]
[1722104129653,0.1582088,68878.0,68877.0,0.1551079]
[1722104129853,0.1642088,68878.0,68877.0,0.1551079]
[1722104130253,0.1642088,68878.0,68877.0,0.1611079]
[1722104130458,0.1622088,68878.0,68877.0,0.1611079]
[1722104130656,0.1622088,68878.0,68877.0,0.1661079]
[1722104131679,0.1622088,68878.0,68877.0,0.0209219]
[1722104131856,0.3073928,68878.0,68877.0,0.0209219]
[1722104133109,0.1622088,68878.0,68877.0,0.0209219]
[1722104133263,0.1622088,68878.0,68877.0,0.1661079]
[1722104133476,0.1622088,68878.0,68877.0,0.1611079]
[1722104133689,0.1582088,68878.0,68877.0,0.1551079]
[1722104133902,0.1592088,68878.0,68877.0,0.1551079]
[1722104134300,0.1592088,68878.0,68877.0,0.0099219]
[1722104134828,0.1582088,68878.0,68877.0,0.0099219]
[1722104135049,0.1582088,68878.0,68875.0,0.14519]
[1722104135272,0.07512979,68876.0,68875.0,0.14519]
[1722104137024,0.07512979,68876.0,68875.0,0.14819]
[1722104137301,0.07512979,68876.0,68875.0,0.14619]
[1722104137495,0.07512979,68876.0,68875.0,0.001]
[1722104138700,0.07512979,68876.0,68875.0,0.003]
[1722104139151,0.07512979,68876.0,68875.0,0.001]
[1722104140150,0.07512979,68876.0,68875.0,0.14619]
[1722104140349,0.07512979,68876.0,68875.0,0.14519]
[1722104140755,0.07612979,68876.0,68875.0,0.14519]
[1722104141326,0.07512979,68876.0,68875.0,0.14519]
[1722104141574,0.07612979,68876.0,68875.0,0.14519]
[1722104141702,0.07612979,68876.0,68875.0,0.15512343]
[1722104142537,0.07612979,68876.0,68875.0,0.00993343]
[1722104142897,0.07512979,68876.0,68875.0,0.00993343]
[1722104143099,0.07512979,68876.0,68875.0,0.01293343]
[1722104144153,0.07512979,68876.0,68875.0,0.15812343]
[1722104144308,0.07512979,68876.0,68875.0,0.01293343]
[1722104145659,0.51069379,68876.0,68875.0,0.01293343]
[1722104145859,0.65559379,68876.0,68875.0,0.01293343]
[1722104146123,0.65559379,68876.0,68875.0,0.003]
[1722104146124,0.94596979,68876.0,68875.0,0.003]
[1722104146321,0.95501957,68876.0,68875.0,0.003]
[1722104146467,1.24539557,68876.0,68875.0,0.003]
[1722104147248,1.24539557,68876.0,68875.0,0.002]
[1722104147435,1.24739663,68876.0,68875.0,0.002]
[1722104148083,1.154533,68875.0,68874.0,0.000924]
[1722104148298,1.16358384,68875.0,68874.0,0.000924]
[1722104148747,1.16358364,68875.0,68874.0,0.000924]
[1722104149537,1.16558364,68875.0,68874.0,0.000924]
[1722104150374,1.16758364,68875.0,68874.0,0.000924]
[1722104151901,1.45796464,68875.0,68874.0,0.000924]
[1722104152104,1.45796498,68875.0,68874.0,0.000924]
[1722104152308,1.60542455,68875.0,68874.0,0.000924]
[1722104152971,1.49681536,68875.0,68874.0,0.000924]
[1722104153817,1.49481536,68875.0,68874.0,0.000924]
[1722104154017,1.49481536,68875.0,68874.0,0.001924]
[1722104154018,1.49681536,68875.0,68874.0,0.001924]
[1722104154760,1.49481536,68875.0,68874.0,0.000924]
[1722104154899,1.60338123,68875.0,68874.0,0.001924]
[1722104155097,1.60336192,68875.0,68874.0,0.001924]
[1722104155296,1.61149832,68875.0,68874.0,0.002924]
[1722104155494,1.60349832,68875.0,68874.0,0.001924]
[1722104155702,1.60349832,68875.0,68874.0,0.002924]
[1722104155911,1.61549981,68875.0,68874.0,0.002924]
[1722104156111,1.46796579,68875.0,68874.0,0.002924]
[1722104157578,1.50675824,68875.0,68874.0,0.002924]
[1722104158630,1.458914,68875.0,68874.0,0.002924]
[1722104158850,1.50681837,68875.0,68874.0,0.002924]
[1722104159255,1.738528,68875.0,68874.0,0.002924]
[1722104159654,1.63003753,68875.0,68874.0,0.002924]
[1722104160426,1.62993894,68875.0,68874.0,0.002924]
[1722104160579,1.50671978,68875.0,68874.0,0.002924]
[1722104160755,1.59353648,68875.0,68874.0,0.002924]
[1722104161340,1.50671236,68875.0,68874.0,0.002924]
[1722104161546,1.61524882,68875.0,68874.0,0.002924]
[1722104161749,1.5935321,68875.0,68874.0,0.002924]
[1722104161900,1.78228549,68875.0,68874.0,0.002924]
[1722104162287,1.69546575,68875.0,68874.0,0.002924]
[1722104163090,1.78228549,68875.0,68874.0,0.002924]
[1722104163484,1.82152572,68875.0,68874.0,0.002924]
[1722104163716,1.97178529,68875.0,68874.0,0.002924]
[1722104163975,1.88496429,68875.0,68874.0,0.002924]
[1722104164190,1.88497187,68875.0,68874.0,0.002924]
[1722104164391,1.88516695,68875.0,68874.0,0.002924]
[1722104164598,2.12705457,68875.0,68874.0,0.002924]
[1722104164793,2.17554794,68875.0,68874.0,0.002924]
[1722104165420,2.02528837,68875.0,68874.0,0.002924]
[1722104167568,2.02548742,68875.0,68874.0,0.002924]
[1722104170969,1.98584722,68875.0,68874.0,0.002924]
[1722104171175,2.02552491,68875.0,68874.0,0.002924]
[1722104174305,2.02552491,68875.0,68874.0,1e-06]
[1722104174306,2.31588446,68875.0,68874.0,1e-06]
[1722104174533,0.435723,68851.0,68850.0,0.0653]
[1722104174747,0.44477522,68851.0,68850.0,0.0653]
[1722104174947,0.73525722,68851.0,68850.0,0.07529928]
[1722104175156,0.73525722,68851.0,68850.0,0.0653]
[1722104175972,0.73625722,68851.0,68850.0,0.0733]
[1722104176502,0.73725722,68851.0,68850.0,0.0803]
[1722104176953,0.73725722,68851.0,68850.0,0.1632]
[1722104177141,1.211123,68887.0,68850.0,0.64404557]
[1722104177142,0.10863422,68874.0,68850.0,0.64404557]
[1722104177338,0.014,68875.0,68874.0,0.808862]
[1722104177516,0.02305015,68875.0,68874.0,0.874162]
[1722104177693,0.014,68875.0,68874.0,0.88316329]
[1722104178099,0.014,68875.0,68874.0,0.90616329]
[1722104178321,0.00084,68876.0,68875.0,0.583771]
[1722104178522,0.00084,68876.0,68875.0,0.75703057]
[1722104178746,0.00084,68876.0,68875.0,1.34578451]
[1722104180534,0.00184,68876.0,68875.0,1.34578451]
[1722104180957,0.00284,68876.0,68875.0,1.34578451]
[1722104182345,0.00284,68876.0,68875.0,1.35452869]
[1722104182805,0.00284,68876.0,68875.0,0.91388812]
[1722104183256,0.00284,68876.0,68875.0,1.20426912]
[1722104184178,0.00184,68876.0,68875.0,1.20426912]
[1722104184573,0.00284,68876.0,68875.0,1.20426912]
[1722104184776,0.00184,68876.0,68875.0,1.20426912]
[1722104184947,0.00084,68876.0,68875.0,1.20426912]
[1722104185150,0.00184,68876.0,68875.0,1.20426912]
[1722104185803,0.00284,68876.0,68875.0,1.20426912]
[1722104186498,0.00284,68876.0,68875.0,1.17252494]
[1722104187552,0.00184,68876.0,68875.0,1.19552494]
[1722104188384,0.00084,68876.0,68875.0,1.19552494]
[1722104188586,0.00184,68876.0,68875.0,1.19552494]
[1722104188990,0.00084,68876.0,68875.0,1.19552494]
[1722104189370,0.00184,68876.0,68875.0,1.19552494]
[1722104189570,0.00084,68876.0,68875.0,1.19552494]
[1722104190567,0.00184,68876.0,68875.0,1.19552494]
[1722104190974,0.00284,68876.0,68875.0,1.19552494]
[1722104193878,0.00284,68876.0,68875.0,1.02432494]
[1722104195100,0.00184,68876.0,68875.0,1.02432494]
[1722104195517,0.00284,68876.0,68875.0,1.02432494]
[1722104195908,0.00184,68876.0,68875.0,1.02432494]
[1722104196281,0.00284,68876.0,68875.0,1.02432494]
[1722104197063,0.00184,68876.0,68875.0,1.02432494]
[1722104197234,0.00284,68876.0,68875.0,1.02432494]
[1722104197577,0.00184,68876.0,68875.0,1.02432494]
[1722104197781,0.00184,68876.0,68875.0,1.10272494]
[1722104197982,0.00284,68876.0,68875.0,1.19032494]
[1722104198631,0.00184,68876.0,68875.0,1.19032494]
[1722104198832,0.00084,68876.0,68875.0,1.19032494]
[1722104199029,0.00184,68876.0,68875.0,1.19032494]
[1722104199662,0.00184,68876.0,68875.0,1.34058451]
[1722104199914,0.00284,68876.0,68875.0,1.73096551]
[1722104200453,0.00184,68876.0,68875.0,1.73096551]
[1722104200667,0.00284,68876.0,68875.0,1.73096551]
[1722104202115,0.00284,68876.0,68875.0,2.02134651]
[1722104202517,0.00284,68876.0,68875.0,2.17108614]
[1722104202919,0.0201088,68878.0,68877.0,1.740046]
[1722104203271,0.0201088,68878.0,68877.0,2.04218671]
[1722104203477,0.0201088,68878.0,68877.0,2.46368871]
[1722104203667,0.0201088,68878.0,68877.0,2.46368244]
[1722104205053,0.00819,68887.0,68886.0,1.889171]
[1722104205225,0.00819,68887.0,68886.0,2.40993057]
[1722104205449,0.00819,68887.0,68886.0,2.66178014]
[1722104206043,0.00819,68887.0,68886.0,2.65978014]
[1722104206247,0.00819,68887.0,68886.0,2.36944614]
[1722104206768,0.00819,68887.0,68886.0,2.36943642]
[1722104207345,0.00819,68887.0,68886.0,2.65977042]
[1722104207747,0.00819,68887.0,68886.0,2.67377042]
[1722104207946,0.00919,68887.0,68886.0,2.68577042]
[1722104208150,0.00819,68887.0,68886.0,2.72206035]
[1722104208383,0.00919,68887.0,68886.0,2.73306035]
[1722104208602,0.00919,68887.0,68886.0,2.74706035]
[1722104208811,0.00919,68887.0,68886.0,2.68677042]
[1722104209780,0.00919,68887.0,68886.0,2.68477042]
[1722104210812,0.00919,68887.0,68886.0,2.69347055]
[1722104211384,0.00919,68887.0,68886.0,2.69547055]
[1722104211870,0.48486549,68888.0,68887.0,2.025645]
[1722104212032,0.48486549,68888.0,68887.0,2.41949015]
[1722104212218,0.48486549,68888.0,68887.0,2.42773303]
[1722104212643,0.48486549,68888.0,68887.0,2.42573303]
[1722104213079,0.48586549,68888.0,68887.0,2.43573303]
[1722104213424,0.48586549,68888.0,68887.0,2.31514745]
[1722104213647,0.48586549,68888.0,68887.0,2.43574003]
[1722104213863,0.48686549,68888.0,68887.0,2.44574003]
[1722104214863,0.45758555,68888.0,68887.0,2.44574003]
[1722104215459,0.45758555,68888.0,68887.0,2.44774003]
[1722104216684,0.45758555,68888.0,68887.0,2.44773205]
[1722104217527,0.45758555,68888.0,68887.0,2.44573205]
[1722104217910,0.45758555,68888.0,68887.0,2.15540205]
[1722104218869,0.45758555,68888.0,68887.0,1.70557205]
[1722104219802,0.45758555,68888.0,68887.0,1.48498745]
[1722104220933,0.45758555,68888.0,68887.0,1.50798745]
[1722104221157,0.45758555,68888.0,68887.0,1.60798745]
[1722104226532,0.45758555,68888.0,68887.0,1.72858982]
[1722104228398,0.45758555,68888.0,68887.0,2.15971982]
[1722104228399,0.4000797,68888.0,68887.0,2.15971982]
[1722104228613,0.3662597,68888.0,68887.0,2.15971982]
[1722104228819,0.3662597,68888.0,68887.0,2.15970687]
[1722104229027,0.3462597,68888.0,68887.0,2.15970687]
[1722104229768,0.19981939,68888.0,68887.0,2.15970687]
[1722104229970,0.17942815,68888.0,68887.0,2.15970687]
[1722104230182,0.17942815,68888.0,68887.0,2.21999963]
[1722104230393,0.07117683,68888.0,68887.0,2.21999963]
[1722104230628,0.0168931,68888.0,68887.0,2.22199963]
[1722104230870,0.01018,68899.0,68897.0,0.437432]
[1722104231076,0.00818,68908.0,68907.0,1.015861]
[1722104231277,0.00818,68908.0,68907.0,1.56866657]
[1722104231482,0.00818,68908.0,68907.0,1.57687109]
[1722104232887,0.00918,68908.0,68907.0,1.58787109]
[1722104233092,0.00818,68908.0,68907.0,1.86711709]
[1722104233305,0.00818,68908.0,68907.0,2.00004135]
[1722104233463,0.00918,68908.0,68907.0,2.30128735]
[1722104233690,0.00918,68908.0,68907.0,1.94794135]
[1722104234102,0.00918,68908.0,68907.0,1.43881076]
[1722104234315,0.00918,68908.0,68907.0,1.3062405]
[1722104234517,0.00918,68908.0,68907.0,1.3202405]
[1722104234723,0.00918,68908.0,68907.0,1.14698093]
[1722104234923,0.00918,68908.0,68907.0,0.85673493]
[1722104235135,0.00918,68908.0,68907.0,1.14698093]
[1722104236257,0.00918,68908.0,68907.0,0.27624293]
[1722104236462,0.15118,68908.0,68907.0,0.55787352]
[1722104236812,0.15118,68908.0,68907.0,0.84811952]
[1722104237668,0.15118,68908.0,68907.0,1.13836552]
[1722104237876,0.15118,68908.0,68907.0,0.84811952]
[1722104239257,0.15118,68908.0,68907.0,1.13836552]
[1722104239464,0.15118,68908.0,68907.0,1.16136552]
[1722104239689,0.09028,68908.0,68907.0,1.31162509]
[1722104239890,0.00918,68908.0,68907.0,1.31162509]
[1722104243022,0.00918,68908.0,68907.0,1.60187109]
[1722104243435,0.00918,68908.0,68907.0,1.82937109]
[1722104244452,0.00918,68908.0,68907.0,1.53912509]
[1722104244895,0.00918,68908.0,68907.0,1.82937109]
[1722104247002,0.00918,68908.0,68907.0,1.90447109]
[1722104247204,0.00918,68908.0,68907.0,2.26041709]
[1722104247422,0.002,68909.0,68908.0,1.015847]
[1722104247628,0.00818,68914.0,68913.0,0.725552]
[1722104247792,0.00818,68914.0,68913.0,2.09697457]
[1722104247997,0.00818,68914.0,68913.0,1.81494228]
[1722104248194,0.00818,68914.0,68913.0,1.86238012]
[1722104248450,0.00818,68914.0,68913.0,1.81494228]
[1722104248698,0.00818,68914.0,68913.0,1.86238012]
[1722104249282,0.00818,68914.0,68913.0,2.15260112]
[1722104249504,0.00818,68914.0,68913.0,1.87438012]
[1722104249625,0.00818,68914.0,68913.0,1.86238012]
[1722104249828,0.00818,68914.0,68913.0,2.16836328]
[1722104250163,0.00818,68914.0,68913.0,2.30800112]
[1722104250543,0.00818,68914.0,68913.0,2.32200112]
[1722104250743,0.00818,68914.0,68913.0,2.36761269]
[1722104251185,0.00818,68914.0,68913.0,2.32200112]
[1722104251972,0.00818,68914.0,68913.0,2.4425501]
[1722104252569,0.00818,68914.0,68913.0,2.32200112]
[1722104252769,0.00818,68914.0,68913.0,2.44254921]
[1722104253022,0.00818,68914.0,68913.0,3.52020021]
[1722104253227,0.002,68929.0,68928.0,0.145078]
[1722104253424,0.1445,68929.0,68928.0,0.89865157]
[1722104253627,0.1445,68929.0,68928.0,1.19697163]
[1722104253785,0.1428284,68929.0,68928.0,1.14671206]
[1722104253985,0.1428284,68929.0,68928.0,1.29697163]
[1722104255030,0.1428284,68929.0,68928.0,1.30797163]
[1722104255371,0.1428284,68929.0,68928.0,1.30897163]
[1722104255578,0.1428284,68929.0,68928.0,1.31897163]
[1722104255833,0.1428284,68929.0,68928.0,1.30697163]
[1722104256035,0.1428284,68929.0,68928.0,1.31797163]
[1722104256602,0.1428284,68929.0,68928.0,1.32679292]
[1722104259174,0.0003284,68929.0,68928.0,1.32679292]
[1722104260287,0.0003284,68929.0,68928.0,1.31579292]
[1722104261219,0.0003284,68929.0,68928.0,1.30579292]
[1722104261427,0.0003284,68929.0,68928.0,1.31979292]
[1722104261576,0.0003284,68929.0,68928.0,1.33379292]
[1722104261783,0.0003284,68929.0,68928.0,1.31979292]
[1722104262059,0.0828284,68929.0,68928.0,1.31979292]
[1722104262727,0.1428284,68929.0,68928.0,0.02216306]
[1722104263016,0.0825,68928.0,68917.0,0.00017467]
[1722104263218,0.0825,68928.0,68890.0,0.06449162]
[1722104263219,0.0825,68902.0,68894.0,0.45077872]
[1722104263422,0.07512979,68895.0,68894.0,0.88622972]
[1722104263634,0.0351,68901.0,68900.0,0.435412]
[1722104263860,0.0351,68901.0,68895.0,0.01820069]
[1722104263861,0.07512979,68918.0,68901.0,0.435406]
[1722104264081,0.07512979,68918.0,68897.0,0.2275]
[1722104264082,0.0825,68913.0,68912.0,0.145112]
[1722104264296,0.0825,68913.0,68912.0,0.435337]
[1722104264445,0.0825,68913.0,68912.0,0.16323515]
[1722104264865,0.0775,68913.0,68912.0,0.16323515]
[1722104265291,0.0775,68913.0,68912.0,0.01812315]
[1722104265492,0.0775,68913.0,68908.0,0.14512]
[1722104265689,0.07512979,68910.0,68909.0,0.168118]
[1722104265888,0.07512979,68910.0,68909.0,0.18625483]
[1722104266331,0.07512979,68910.0,68909.0,0.04113683]
[1722104266511,0.07512979,68910.0,68909.0,0.01813683]
[1722104266724,0.07512979,68910.0,68908.0,0.007]
[1722104266725,0.290237,68909.0,68908.0,0.007]
[1722104266925,0.435355,68909.0,68908.0,0.007]
[1722104267168,0.13512979,68910.0,68908.0,0.007]
[1722104267611,0.145118,68909.0,68908.0,0.007]
[1722104267792,0.13512979,68910.0,68909.0,0.01813683]
[1722104267993,0.0763,68909.0,68908.0,0.007]
[1722104268447,0.0763,68909.0,68903.0,0.1]
[1722104268448,0.145122,68908.0,68903.0,0.1]
[1722104268662,0.366537,68909.0,68902.0,0.1]
[1722104268852,0.145125,68906.0,68901.0,0.1]
[1722104269289,0.290244,68908.0,68901.0,0.1]
[1722104269290,0.145128,68905.0,68901.0,0.1]
[1722104269457,0.0763,68909.0,68898.0,0.00847101]
[1722104269458,0.145134,68902.0,68898.0,0.00847101]
[1722104269604,0.145145,68897.0,68887.0,0.472724]
[1722104269818,0.0763,68902.0,68892.0,0.145153]
[1722104269819,0.07512979,68896.0,68892.0,0.145153]
[1722104270009,0.07512979,68896.0,68893.0,0.023]
[1722104270207,0.07512979,68896.0,68893.0,0.168152]
[1722104270411,0.07512979,68896.0,68894.0,0.14515]
[1722104270611,0.290284,68899.0,68889.0,0.290321]
[1722104270861,0.145144,68897.0,68892.0,0.145154]
[1722104271031,0.145144,68897.0,68893.0,0.1]
[1722104271237,0.07512979,68896.0,68893.0,0.1]
[1722104271479,0.07512979,68896.0,68893.0,0.145152]
[1722104271839,0.22027679,68896.0,68894.0,0.1]
[1722104272314,0.145143,68898.0,68894.0,0.1]
[1722104272517,0.145142,68898.0,68894.0,0.1]
[1722104272727,0.145144,68897.0,68894.0,0.1]
[1722104272934,0.145144,68897.0,68892.0,0.245154]
[1722104273134,0.145146,68896.0,68893.0,0.013]
[1722104273351,0.14515,68894.0,68893.0,0.013]
[1722104273550,0.435451,68894.0,68893.0,0.013]
[1722104274320,0.435451,68894.0,68893.0,0.03120982]
[1722104274321,0.14515,68894.0,68893.0,0.03120982]
[1722104274498,0.14515,68894.0,68892.0,0.013]
[1722104274773,0.435451,68894.0,68893.0,0.01820982]
[1722104275189,0.511751,68894.0,68893.0,0.01820982]
[1722104276334,0.511751,68894.0,68893.0,0.03220982]
[1722104276456,0.511751,68894.0,68893.0,0.02220982]
[1722104277028,0.0763,68894.0,68893.0,0.02420982]
[1722104277231,0.0763,68894.0,68893.0,0.02220982]
[1722104277835,0.0763,68894.0,68893.0,0.01820982]
[1722104278192,0.0763,68894.0,68891.0,0.145156]